lending/lending_fUSD_20240830
["ID","MTS","AMOUNT","RATE_DAILY","PERIOD"]
[336709158,1725054637968,-2176.74229959,0.00010967,2]
[336709159,1725054637978,-631.85596528,0.00010969,2]
[336709160,1725054637987,-533.0,0.0001097,2]
[336709161,1725054637997,-196349.5242807,0.0001097,2]
[336709162,1725054638202,-636318.72954987,0.0001097,2]
[336709195,1725054640018,-1544.55087731,0.0001097,2]
[336709198,1725054640749,-405.79,0.0001097,2]
[336709199,1725054640772,-2666.01834605,0.0001097,2]
[336709200,1725054640786,-3756.6679994,0.0001097,2]
[336709201,1725054640798,-2840.53,0.0001097,2]
[336709202,1725054640955,250.0,0.00010473,2]
[336709203,1725054642880,-4060.40956993,0.0001097,2]
[336709215,1725054644264,-403.28043007,0.0001097,2]
[336709216,1725054645556,151.38,0.00010473,2]
[336709217,1725054645886,-4512.96117398,0.0001097,2]
[336709218,1725054645951,-474.41019335,0.0001097,2]
[336709223,1725054663334,200.0,0.000103,3]
[336709224,1725054665464,500.0,0.000104,3]
[336709225,1725054667561,389.6833658,0.00010959,2]
[336709226,1725054667587,154130.3166342,0.00010959,2]
[336709227,1725054667615,700.0,0.000105,3]
[336709228,1725054668529,250.0,0.00010457,2]
[336709229,1725054669691,1000.0,0.000106,3]
[336709230,1725054671812,1300.0,0.000107,3]
[336709231,1725054673959,200.0,0.000108,3]
[336709232,1725054676015,200.0,0.000109,3]
[336709233,1725054703167,163.74,0.00010959,2]
[336709234,1725054704573,189.86,8.539e-05,2]
[336709235,1725054704804,189.86,0.00010803,2]
[336709236,1725054713131,1000.0,0.0001087,2]
[336709237,1725054728745,204.42,0.0001066,2]
[336709238,1725054734865,208.44555,0.0001086,2]
[336709239,1725054774378,2359.9087,0.0001087,2]
[336709240,1725054775045,175.15288386,0.00010899,2]
[336709241,1725054797231,500.0,0.00010959,2]
[336709242,1725054803990,1050.0,0.0001,2]
[336709243,1725054822713,500.0,0.00010812,2]
[336709244,1725054845735,171.53,0.0001061,2]
[336709245,1725054967955,593.0,0.00010959,2]
[336709246,1725055014890,23900.0,0.00010371,2]
[336709247,1725055125537,173.70462,0.0001086,2]
[336709248,1725055140205,153.78,8.247e-05,2]
[336709250,1725055172018,250.0,0.00010356,2]
[336709251,1725055200391,157.63759551,0.00010899,2]
[336709252,1725055202662,170.87,8.439e-05,2]
[336709253,1725055202877,170.87,0.00010703,2]
[336709254,1725055210901,1000.0,0.00010466,2]
[336709255,1725055212035,486.76,0.00010466,2]
[336709256,1725055214326,-151.81,0.0001096,2]
[336709258,1725055237119,600.0,0.0001045,2]
[336709259,1725055237980,600.0,0.0001045,2]
[336709260,1725055238598,208.52,0.00010109,2]
[336709261,1725055238626,600.0,0.00010354,2]
[336709262,1725055239440,600.0,0.0001045,2]
[336709263,1725055240678,600.0,0.00010424,2]
[336709264,1725055242088,600.0,0.0001045,2]
[336709265,1725055242807,600.0,0.0001045,2]
[336709266,1725055244254,600.0,0.0001045,2]
[336709267,1725055245157,600.0,0.00010925,2]
[336709268,1725055245866,600.0,0.0001045,2]
[336709269,1725055246563,600.0,0.0001045,2]
[336709270,1725055247766,600.0,0.0001045,2]
[336709271,1725055248412,600.0,0.00010925,2]
[336709272,1725055249260,600.0,0.0001045,2]
[336709273,1725055249953,600.0,0.0001045,2]
[336709274,1725055250714,600.0,0.0001045,2]
[336709275,1725055251403,600.0,0.0001045,2]
[336709276,1725055252124,600.0,0.00010925,2]
[336709277,1725055253166,600.0,0.0001045,2]
[336709278,1725055253875,600.0,0.0001045,2]
[336709279,1725055254574,600.0,0.00010925,2]
[336709280,1725055255295,600.0,0.0001045,2]
[336709281,1725055256038,600.0,0.0001045,2]
[336709282,1725055256830,600.0,0.0001045,2]
[336709283,1725055257530,600.0,0.0001045,2]
[336709284,1725055258854,600.0,0.0001045,2]
[336709285,1725055259499,600.0,0.0001045,2]
[336709286,1725055260151,600.0,0.0001045,2]
[336709287,1725055261949,600.0,0.0001045,2]
[336709288,1725055262847,600.0,0.00010925,2]
[336709289,1725055263587,600.0,0.0001045,2]
[336709290,1725055264529,600.0,0.0001045,2]
[336709291,1725055265338,600.0,0.00010925,2]
[336709292,1725055266050,600.0,0.00010424,2]
[336709293,1725055266871,600.0,0.0001045,2]
[336709294,1725055267681,600.0,0.0001045,2]
[336709295,1725055268899,600.0,0.0001045,2]
[336709296,1725055268991,600.0,0.0001045,2]
[336709297,1725055270393,150.0,0.0001,2]
[336709298,1725055277841,600.0,0.0001045,2]
[336709299,1725055278498,600.0,0.0001045,2]
[336709300,1725055329791,150.0,0.0001087,2]
[336709301,1725055338491,1776.02,0.00024,120]
[336709302,1725055387658,2463.0,0.00010959,2]
[336709303,1725055422195,500.0,0.00010871,2]
[336709304,1725055625791,157.63759546,0.00010899,2]
[336709305,1725055676374,250.0,0.00010095,2]
[336709306,1725055689052,153.78,8.219e-05,2]
[336709307,1725055689266,153.78,0.0001048,2]
[336709308,1725055692790,200.0,0.00010081,2]
[336709309,1725055706766,243.38,0.00010081,2]
[336709310,1725055731481,194.76,0.00010081,2]
[336709317,1725055832029,-300.0,0.00010965,2]
[336709318,1725055832038,-1259.0,0.00010966,2]
[336709319,1725055832048,-446.57355483,0.00010966,2]
[336709320,1725055832193,-176.42644517,0.00010966,2]
[336709321,1725055832204,-1545.0,0.00010966,2]
[336709322,1725055832214,-51926.2200625,0.0001097,2]
[336709323,1725055838208,-776.76091792,0.0001097,2]
[336709324,1725055838442,-1003.42783913,0.0001097,2]
[336709325,1725055838453,-5976.9999323,0.0001097,2]
[336709361,1725055840375,-1102.09274754,0.0001097,2]
[336709388,1725055843203,-5097.57,0.0001097,2]
[336709389,1725055843257,-9530.11924672,0.0001097,2]
[336709390,1725055843313,-1501.27922489,0.0001097,2]
[336709406,1725055844246,-290.70164782,0.0001097,2]
[336709409,1725055846100,-399.11,0.0001097,2]
[336709410,1725055846111,-284.16700189,0.0001097,2]
[336709411,1725055846199,-747.40697802,0.0001097,2]
[336709412,1725055846210,-505.14,0.0001097,2]
[336709413,1725055846221,-292.064,0.0001097,2]
[336709414,1725055846232,-450.0,0.0001097,2]
[336709415,1725055846243,-1638.75847345,0.0001097,2]
[336709835,1725055869591,400.0,0.000103,3]
[336709836,1725055871763,800.0,0.000104,3]
[336709837,1725055871820,186.22651353,0.0001087,2]
[336709838,1725055873879,1200.0,0.000105,3]
[336709839,1725055875975,1600.0,0.000106,3]
[336709840,1725055879595,2000.0,0.000107,3]
[336709841,1725055880184,400.0,0.000108,3]
[336709842,1725055882277,400.0,0.000109,3]
[336709844,1725055999410,500.0,0.00010959,2]
[336709845,1725056000030,-7240.57875756,0.00010967,2]
[336709846,1725056000053,-150.0,0.00010969,2]
[336709847,1725056020231,13909.42124244,0.0001011,2]
[336709848,1725056020254,9990.57875756,0.0001011,2]
[336709849,1725056023045,500.0,0.00010882,2]
[336709850,1725056035767,-31364.6668,0.0001097,2]
[336709851,1725056041722,150.6302429,0.00010899,2]
[336709854,1725056118823,32198.2205,0.0001087,2]
[336709855,1725056135826,171.53,0.00010081,2]
[336709856,1725056157864,156.77939307,0.0001087,2]
[336709857,1725056165202,250.0,0.0001008,2]
[336709858,1725056178190,1487.8249,0.0001087,2]
[336709859,1725056189994,174.7,8.219e-05,2]
[336709860,1725056190407,174.7,0.00010481,2]
[336709861,1725056198357,435.52,0.0001008,2]
[336709862,1725056236945,561.43777,0.0001086,2]
[336709863,1725056238227,172.28,0.00010959,2]
[336709865,1725056276464,840.0,0.00010067,2]
[336709866,1725056304868,202.48,0.00010067,2]
[336709867,1725056319929,250.0,0.00010081,2]
[336709868,1725056370461,395.38,0.00010067,2]
[336709869,1725056370687,395.38,0.00010069,2]
[336709870,1725056370917,395.38,0.00010072,2]
[336709871,1725056371338,395.38,0.00010075,2]
[336709872,1725056371559,395.38,0.00010077,2]
[336709873,1725056371789,395.38,0.0001008,2]
[336709874,1725056372029,395.38,0.00010083,2]
[336709875,1725056372281,395.38,0.00010085,2]
[336709876,1725056372502,395.38,0.00010088,2]
[336709877,1725056372716,395.38,0.00010091,2]
[336709878,1725056372986,395.38,0.00010093,2]
[336709879,1725056373192,395.38,0.00010096,2]
[336709880,1725056373415,395.38,0.00010098,2]
[336709881,1725056373644,395.38,0.00010101,2]
[336709882,1725056373860,395.38,0.00010104,2]
[336709883,1725056374070,395.38,0.00010106,2]
[336709884,1725056374291,395.38,0.00010109,2]
[336709886,1725056374493,395.38,0.00010112,2]
[336709887,1725056374716,395.38,0.00010114,2]
[336709888,1725056374933,395.38,0.00010117,2]
[336709889,1725056413647,-151.5,0.0001096,2]
[336709890,1725056414212,-151.5,0.0001096,2]
[336709891,1725056414234,-141.63517674,0.0001096,2]
[336709892,1725056414800,-9.86482326,0.0001096,2]
[336709893,1725056414823,-151.5,0.0001096,2]
[336709894,1725056414847,-95.0796167,0.0001096,2]
[336709895,1725056466994,150.56721861,0.00010899,2]
[336709896,1725056477700,2792.88,0.00010058,2]
[336709897,1725056621926,500.0,0.00010882,2]
[336709898,1725056625501,1050.0,0.0001,2]
[336709899,1725056639729,467.86481,0.0001086,2]
[336709900,1725056673010,217.76,0.00010067,2]
[336709901,1725056676109,172.05,8.219e-05,2]
[336709902,1725056676339,172.05,0.00010479,2]
[336709903,1725056706378,250.0,0.00010067,2]
[336709904,1725056729617,256.4444,0.0001087,2]
[336710194,1725056758796,328.0,0.00010053,2]
[336710196,1725056783706,1510.4461875,0.0001,2]
[336710197,1725056810695,205.52,0.00010053,2]
[336710201,1725056892335,150.56721854,0.00010899,2]
[336710205,1725056930752,-56.4203833,0.0001096,2]
[336710207,1725056930780,-151.5,0.00010962,2]
[336710208,1725056930811,-4050.56362596,0.00010962,2]
[336710209,1725056930853,-3985.69105785,0.00010962,2]
[336710210,1725056930883,-151.5,0.00010963,2]
[336710211,1725056930912,-121.29295141,0.00010963,2]
[336710212,1725056930963,-30.20704859,0.00010963,2]
[336710213,1725056930992,-151.5,0.00010963,2]
[336710214,1725056931021,-151.5,0.00010963,2]
[336710215,1725056931053,-151.5,0.00010963,2]
[336710216,1725056931081,-151.5,0.00010963,2]
[336710217,1725056931110,-151.5,0.00010963,2]
[336710218,1725056931139,-151.5,0.00010963,2]
[336710219,1725056931168,-151.5,0.00010963,2]
[336710220,1725056931196,-151.5,0.00010963,2]
[336710221,1725056931225,-151.5,0.00010963,2]
[336710222,1725056931254,-151.5,0.00010963,2]
[336710223,1725056931283,-151.5,0.00010963,2]
[336710224,1725056931311,-151.5,0.00010963,2]
[336710225,1725056931339,-18.36721696,0.00010963,2]
[336710227,1725057021407,-152.68,0.0001096,2]
[336710228,1725057022154,-152.68,0.0001096,2]
[336710229,1725057022175,-31.2373,0.0001096,2]
[336710230,1725057022862,-121.4427,0.0001096,2]
[336710231,1725057022883,-64.74887988,0.0001096,2]
[336710242,1725057032403,-87.93112012,0.0001096,2]
[336710244,1725057032413,-150.0,0.00010962,2]
[336710246,1725057032422,-152.68,0.00010962,2]
[336710248,1725057032432,-88.54887988,0.00010963,2]
[336710257,1725057038355,-3911.45112012,0.00010963,2]
[336710258,1725057038364,-152.68,0.00010963,2]
[336710259,1725057038373,-152.68,0.00010963,2]
[336710260,1725057038382,-152.68,0.00010963,2]
[336710261,1725057038391,-152.68,0.00010963,2]
[336710262,1725057038401,-152.68,0.00010963,2]
[336710263,1725057038412,-152.68,0.00010963,2]
[336710264,1725057038421,-152.68,0.00010963,2]
[336710265,1725057038430,-152.68,0.00010963,2]
[336710266,1725057038439,-152.68,0.00010963,2]
[336710267,1725057038449,-152.68,0.00010963,2]
[336710268,1725057038458,-152.68,0.00010963,2]
[336710269,1725057038468,-152.68,0.00010963,2]
[336710270,1725057038476,-152.68,0.00010963,2]
[336710271,1725057038486,-152.68,0.00010963,2]
[336710272,1725057038496,-152.68,0.00010963,2]
[336710273,1725057038505,-152.68,0.00010963,2]
[336710274,1725057038515,-152.68,0.00010963,2]
[336710275,1725057038524,-105.2404655,0.00010963,2]
[336710288,1725057038653,-47.4395345,0.00010963,2]
[336710290,1725057038662,-152.68,0.00010963,2]
[336710292,1725057038671,-152.68,0.00010963,2]
[336710294,1725057038681,-152.68,0.00010963,2]
[336710296,1725057038690,-152.68,0.00010963,2]
[336710298,1725057038699,-152.68,0.00010963,2]
[336710300,1725057038708,-152.68,0.00010963,2]
[336710302,1725057038717,-152.68,0.00010963,2]
[336710304,1725057038726,-152.68,0.00010963,2]
[336710306,1725057038737,-152.68,0.00010963,2]
[336710308,1725057038752,-152.68,0.00010963,2]
[336710310,1725057038761,-152.68,0.00010963,2]
[336710312,1725057038771,-152.68,0.00010963,2]
[336710314,1725057038780,-152.68,0.00010963,2]
[336710316,1725057038789,-152.68,0.00010963,2]
[336710318,1725057038797,-4471.9245375,0.00010963,2]
[336710320,1725057038806,-56421.54592291,0.0001097,2]
[336710322,1725057038817,-16749.90315973,0.0001097,2]
[336710324,1725057040538,-369.0,0.0001097,2]
[336710623,1725057044528,389.88734,0.0001086,2]
[336710801,1725057046415,-45616.2904731,0.0001097,2]
[336711791,1725057058138,324.24499998,0.00010424,2]
[336715232,1725057118913,186.22651353,0.0001087,2]
[336715233,1725057126844,20160.5,0.000101,2]
[336715234,1725057177040,265.79,0.00010081,2]
[336715235,1725057194303,250.0,0.00010082,2]
[336715236,1725057218642,500.0,0.00010882,2]
[336715237,1725057233298,737.6,0.00010082,2]
[336715238,1725057308023,150.50419432,0.00010899,2]
[336715239,1725057315187,218.74,0.00010959,2]
[336715240,1725057331160,173.98,8.219e-05,2]
[336715241,1725057331201,173.98,0.00010479,2]
[336715242,1725057374659,172.59,0.00010959,2]
[336715245,1725057449883,324.90612,0.0001086,2]
[336715246,1725057614008,-151.19,0.0001096,2]
[336715247,1725057614053,-93.16122,0.0001096,2]
[336715248,1725057623824,244.35,0.00010959,2]
[336715249,1725057681496,196.91,0.00010026,2]
[336715250,1725057695328,268.2,0.0001095,2]
[336715251,1725057702872,250.0,0.00010035,2]
[336715252,1725057719562,265.79,0.00010035,2]
[336715253,1725057723803,150.50419425,0.00010899,2]
[336715254,1725057829443,500.0,0.00010882,2]
[336715255,1725057855098,270.7551,0.0001086,2]
[336715256,1725057879650,155.55,0.00010959,2]
[336715257,1725057907705,150.0,0.00010932,2]
[336715258,1725057933530,156.58,8.219e-05,2]
[336715259,1725057933785,156.58,0.00010476,2]
[336715271,1725057958266,1000.0,0.00010016,2]
[336715273,1725058024281,150.0,9.863e-05,2]
[336715274,1725058130724,150.50419425,0.00010899,2]
[336715275,1725058179498,201.36,0.00010016,2]
[336715276,1725058215016,-154.6,0.0001096,2]
[336715277,1725058215038,-1.00044334,0.0001096,2]
[336715278,1725058215067,225.62925,0.0001086,2]
[336715279,1725058216580,-153.59955666,0.0001096,2]
[336715285,1725058232344,-300.0,0.00010962,2]
[336715286,1725058232354,-154.6,0.00010963,2]
[336715287,1725058232363,-154.6,0.00010963,2]
[336715288,1725058232373,-154.6,0.00010963,2]
[336715289,1725058232382,-154.6,0.00010963,2]
[336715290,1725058232391,-151.40276237,0.00010963,2]
[336715291,1725058232403,-3.19723763,0.00010963,2]
[336715292,1725058232412,-154.6,0.00010963,2]
[336715293,1725058232421,-154.6,0.00010963,2]
[336715294,1725058232431,-154.6,0.00010963,2]
[336715295,1725058232441,-154.6,0.00010963,2]
[336715296,1725058232452,-154.6,0.00010963,2]
[336715297,1725058232461,-154.6,0.00010963,2]
[336715298,1725058232470,-154.6,0.00010963,2]
[336715299,1725058232479,-112.77051237,0.00010963,2]
[336715300,1725058232490,-41.82948763,0.00010963,2]
[336715301,1725058232500,-154.6,0.00010963,2]
[336715302,1725058232508,-103.56051237,0.00010963,2]
[336715313,1725058238552,-51.03948763,0.00010963,2]
[336715314,1725058238562,-3609.9540829,0.00010963,2]
[336715315,1725058238572,-3096.00642947,0.00010963,2]
[336715316,1725058238643,-3419.76719543,0.00010963,2]
[336715317,1725058238654,-1216.70696704,0.00010967,2]
[336715318,1725058238664,-304.17674176,0.00010967,2]
[336715319,1725058238674,-486.69921639,0.00010969,2]
[336715320,1725058238684,-550.0,0.0001097,2]
[336715321,1725058238699,-340.51471778,0.0001097,2]
[336715322,1725058238710,-569.78816292,0.0001097,2]
[336715323,1725058238724,-306.53181999,0.0001097,2]
[336715324,1725058238813,-3120.01875142,0.0001097,2]
[336715327,1725058240450,-302.0,0.0001097,2]
[336715328,1725058240496,-250.85289929,0.0001097,2]
[336715329,1725058240508,-675.22872903,0.0001097,2]
[336715331,1725058240520,-546.98338487,0.0001097,2]
[336715332,1725058240610,-384.522,0.0001097,2]
[336715333,1725058240625,-330.38500001,0.0001097,2]
[336715334,1725058240638,-6372.19978669,0.0001097,2]
[336715335,1725058240737,-1247.45926551,0.0001097,2]
[336715340,1725058243493,-1906.4272013,0.0001097,2]
[336715341,1725058243524,-13049.06188559,0.0001097,2]
[336715342,1725058243554,-2447.60779868,0.0001097,2]
[336715347,1725058244540,-302.0,0.0001097,2]
[336715353,1725058246502,-1006.8,0.0001097,2]
[336715354,1725058246616,-302.0,0.0001097,2]
[336715355,1725058266783,23900.0,0.00010119,2]
[336715356,1725058294672,250.0,0.00010102,2]
[336715357,1725058294881,156.24859515,0.00010869,2]
[336715358,1725058300259,155.6004,0.0001087,2]
[336715359,1725058306054,200.0,0.00010102,2]
[336715360,1725058369640,251.7,0.00010073,2]
[336715362,1725058446773,1050.0,0.0001,2]
[336715364,1725058518298,200.0,0.00010059,2]
[336715365,1725058527324,919.78,0.00010059,2]
[336715366,1725058527354,157.37693058,0.00010899,2]
[336715367,1725058553232,150.0,0.0001087,2]
[336715368,1725058558777,180.85,8.219e-05,2]
[336715369,1725058558991,180.85,0.00010479,2]
[336715370,1725058575051,188.02437,0.0001086,2]
[336715371,1725058581076,250.0,0.00010045,2]
[336715372,1725058786003,203.46,0.00010035,2]
[336715373,1725058816129,-151.52,0.0001096,2]
[336715374,1725058838560,250.0,0.00010035,2]
[336715375,1725058872923,251.7,0.00010025,2]
[336715376,1725058923570,157.37693055,0.00010899,2]
[336715378,1725058965975,156.68698,0.0001086,2]
[336715379,1725059018750,500.0,0.00010882,2]
[336715380,1725059047692,162.76,8.219e-05,2]
[336715381,1725059047726,162.76,0.00010479,2]
[336715382,1725059058638,840.0,0.00010063,2]
[336715411,1725059159915,150.0,0.0001087,2]
[336715412,1725059309064,157.37693055,0.00010899,2]
[336715413,1725059364946,198.22,0.00010049,2]
[336715414,1725059421913,-151.66,0.0001096,2]
[336715444,1725059438461,-300.0,0.00010962,2]
[336715445,1725059438472,-5624.3768781,0.00010963,2]
[336715446,1725059438483,-2107.9510619,0.00010963,2]
[336715448,1725059440088,-424.5870828,0.00010963,2]
[336715449,1725059440098,-804.80096262,0.00010967,2]
[336715450,1725059440109,-18.56195433,0.00010967,2]
[336715465,1725059442939,-249.70503321,0.00010967,2]
[336715466,1725059442951,-102.03105211,0.00010969,2]
[336715467,1725059442963,-197.98894789,0.00010969,2]
[336715468,1725059442973,-110.50911964,0.00010969,2]
[336715480,1725059445082,-39.49088036,0.00010969,2]
[336715481,1725059445091,-561.0,0.0001097,2]
[336715482,1725059445100,-222.33111964,0.0001097,2]
[336715483,1725059445111,-7021.01472604,0.0001097,2]
[336715485,1725059445646,-9109.36606121,0.0001097,2]
[336715486,1725059445659,-815.6971792,0.0001097,2]
[336715487,1725059445698,-250.10479714,0.0001097,2]
[336715488,1725059445710,-431.885,0.0001097,2]
[336715489,1725059445749,-188750.01846588,0.0001097,2]
[336715490,1725059445760,-5008.17589993,0.0001097,2]
[336715491,1725059445772,-611.7165479,0.0001097,2]
[336715492,1725059445797,-325.43719678,0.0001097,2]
[336715493,1725059445850,-12780.09052708,0.0001097,2]
[336715494,1725059445861,-568.80754221,0.0001097,2]
[336715495,1725059445902,-23991.71834705,0.0001097,2]
[336715496,1725059445914,-27821.01315486,0.0001097,2]
[336715497,1725059445926,-6074.499065,0.0001097,2]
[336715498,1725059445937,-2138.00000118,0.0001097,2]
[336715499,1725059445948,-1135.31998,0.0001097,2]
[336715500,1725059460573,10000.0,0.00010424,2]
[336715501,1725059460644,366.363424,0.00010914,2]
[336715502,1725059461882,200.0,0.000103,3]
[336715503,1725059464018,500.0,0.000104,3]
[336715504,1725059466162,800.0,0.000105,3]
[336715505,1725059468280,1100.0,0.000106,3]
[336715507,1725059470496,1300.0,0.000107,3]
[336715508,1725059472698,200.0,0.000108,3]
[336715509,1725059474872,200.0,0.000109,3]
[336715510,1725059513328,250.0,0.00010193,2]
[336715511,1725059599977,155.06,0.00010959,2]
[336715513,1725059601219,186.22651353,0.0001087,2]
[336715514,1725059618275,500.0,0.00010882,2]
[336715515,1725059625183,1928.9343,0.00010863,2]
[336715516,1725059664166,154.19,8.256e-05,2]
[336715517,1725059664579,154.19,0.00010646,2]
[336715518,1725059684885,241.70278578,0.00010899,2]
[336715519,1725059695997,1000.0,0.00010137,2]
[336715520,1725059766792,150.0,0.0001087,2]
[336715521,1725059771451,454.49420859,0.00010873,2]
[336715522,1725059908948,302.99613906,0.00010888,2]
[336715524,1725059995499,250.0,0.00010138,2]
[336715525,1725060003604,9451.71647794,0.00010733,2]
[336715526,1725060014827,-151.66,0.0001096,2]
[336715527,1725060044141,201.99742604,0.00010888,2]
[336715528,1725060084219,163.96,0.00010959,2]
[336715529,1725060112454,217.53250722,0.00010899,2]
[336715530,1725060113010,200.73,0.00010079,2]
[336715532,1725060158770,154.19,8.219e-05,2]
[336715533,1725060158990,154.19,0.00010904,2]
[336715534,1725060205547,888.0,0.00024,120]
[336715535,1725060217495,500.0,0.00010882,2]
[336715536,1725060240385,200.0,0.00010078,2]
[336715537,1725060267082,1050.0,0.0001,2]
[336715538,1725060280597,455.0,0.00010896,2]
[336715539,1725060301083,-300.0,0.00010962,2]
[336715540,1725060301103,-255.0,0.00010962,2]
[336715541,1725060301123,-3626.8181371,0.00010963,2]
[336715542,1725060301144,-1606.5594647,0.00010963,2]
[336715543,1725060301166,-22955.5092176,0.00010963,2]
[336715544,1725060301188,-167.66686721,0.00010967,2]
[336715545,1725060301208,-14881.65115831,0.00010969,2]
[336715546,1725060301230,-167.66686721,0.00010969,2]
[336715547,1725060301252,-471039.12828787,0.0001097,2]
[336715558,1725060335790,186.19157988,9.5e-05,2]
[336715559,1725060373000,150.0,0.0001087,2]
[336715568,1725060467101,250.0,0.0001008,2]
[336715572,1725060539138,195.77925648,0.00010899,2]
[336715575,1725060606696,-547.2101787,0.00010962,2]
[336715577,1725060621535,202.1,0.00010097,2]
[336715580,1725060631785,-7.7898213,0.00010962,2]
[336715581,1725060631795,-321.81895607,0.00010963,2]
[336715582,1725060631825,-575.05,0.00010963,2]
[336715583,1725060631836,-312.02099594,0.00010963,2]
[336715587,1725060631959,-900.0,0.00010963,2]
[336715588,1725060631971,-686.01137448,0.00010963,2]
[336715602,1725060638550,-4657.51990961,0.00010963,2]
[336715603,1725060638559,-1364.45690039,0.00010963,2]
[336715604,1725060638601,-1935.61576651,0.00010963,2]
[336715605,1725060638610,-2906.44563761,0.00010963,2]
[336715606,1725060638621,-4951.8218397,0.00010963,2]
[336715608,1725060640078,-10052.90960269,0.00010963,2]
[336715609,1725060640088,-167.66686721,0.00010969,2]
[336715610,1725060640098,-3032.64776388,0.0001097,2]
[336715611,1725060640109,-7213.48564682,0.0001097,2]
[336715612,1725060640207,-4040.10387698,0.0001097,2]
[336715630,1725060643961,-613.09825755,0.0001097,2]
[336715631,1725060643972,-293.75433028,0.0001097,2]
[336715632,1725060643983,-643.71140223,0.0001097,2]
[336715633,1725060643994,-2865.81931308,0.0001097,2]
[336715634,1725060644006,-5583.61669686,0.0001097,2]
[336715723,1725060673327,154.19,8.219e-05,2]
[336715726,1725060706703,155.55,0.00010959,2]
[336715727,1725060709827,2731.67,0.00010165,2]
[336715728,1725060742549,840.0,0.0001007,2]
[336715729,1725060770324,237.06,0.0001004,2]
[336715730,1725060804494,797.91,0.0001004,2]
[336715731,1725060845325,176.15632561,0.00010863,2]
[336715732,1725060858300,1537.44353983,0.00010646,2]
[336715733,1725060881773,226.4,0.0001003,2]
[336715734,1725060911695,788.1,0.0001003,2]
[336715735,1725060920795,209.32,0.0001003,2]
[336715736,1725060925880,250.0,0.00010959,2]
[336715737,1725060964329,2589.12052971,0.00010899,2]
[336715738,1725060969364,350.15,0.0001004,2]
[336715739,1725060985641,250.0,0.00010069,2]
[336715740,1725061019892,200.0,0.0001003,2]
[336715741,1725061033977,706.98,0.0001003,2]
[336715742,1725061077713,250.0,0.0001003,2]
[336715743,1725061130021,201.27,0.0001003,2]
[336715744,1725061158079,7620.3999,0.0001087,2]
[336715745,1725061171542,156.47,8.219e-05,2]
[336715746,1725061171766,156.47,0.00010603,2]
[336715747,1725061203670,5548.28352206,0.00010698,2]
[336715748,1725061211690,23900.0,0.0001002,2]
[336715749,1725061212958,215.85,0.00010025,2]
[336715750,1725061217810,170.15,7.285e-05,2]
[336715751,1725061218582,328.0,0.00010025,2]
[336715752,1725061256025,198.99,0.00010015,2]
[336715753,1725061319627,580.13,0.00010024,2]
[336715754,1725061389642,2330.20847673,0.00010899,2]
[336715755,1725061395878,394.05,0.00010024,2]